[Event "MČR mládeže v rapid šachu 2024 H10"]
[Site "Harrachov, Czech Republic"]
[Date "????.??.??"]
[Round "6.4"]
[White "Bucek Vit"]
[Black "Hlavacek Pavel"]
[Result "1-0"]
[TimeControl "20+5"]
[WhiteFideId "23750812"]
[BlackFideId "23761768"]
[WhiteElo "1586"]
[BlackElo "1641"]

1. e4 {[%clk 00:20:09]} {[%emt 00:02:44]} c6 {[%clk 00:20:09]} {[%emt
00:00:02]} 2. d4 {[%clk 00:20:13]} {[%emt 00:00:01]} d5 {[%clk 00:20:08]} 3.
Nc3 {[%clk 00:20:17]} {[%emt 00:00:01]} dxe4 {[%clk 00:20:17]} {[%emt
00:00:01]} 4. Nxe4 {[%clk 00:20:21]} {[%emt 00:00:01]} Bf5 {[%clk 00:20:21]} 5.
Ng3 {[%clk 00:20:25]} {[%emt 00:00:01]} Bg6 {[%clk 00:20:25]} 6. h4 {[%clk
00:20:29]} {[%emt 00:00:01]} h6 {[%clk 00:20:29]} 7. Nf3 {[%clk 00:20:33]}
{[%emt 00:00:02]} Nd7 {[%clk 00:20:32]} {[%emt 00:00:02]} 8. h5 {[%clk
00:20:37]} {[%emt 00:00:01]} Bh7 {[%clk 00:20:36]} 9. Bd3 {[%clk 00:20:40]}
{[%emt 00:00:01]} Bxd3 {[%clk 00:20:40]} {[%emt 00:00:01]} 10. Qxd3 {[%clk
00:20:44]} Ngf6 {[%clk 00:20:43]} {[%emt 00:00:02]} 11. Bd2 {[%clk 00:20:48]}
{[%emt 00:00:01]} e6 {[%clk 00:20:46]} {[%emt 00:00:02]} 12. O-O-O {[%clk
00:20:51]} {[%emt 00:00:02]} Be7 {[%clk 00:20:46]} {[%emt 00:00:05]} 13. Kb1
{[%clk 00:20:49]} {[%emt 00:00:08]} O-O {[%clk 00:20:33]} {[%emt 00:00:18]} 14.
Ne4 {[%clk 00:20:40]} {[%emt 00:00:14]} Nxe4 {[%clk 00:19:41]} {[%emt
00:00:57]} 15. Qxe4 {[%clk 00:20:43]} {[%emt 00:00:02]} Nf6 {[%clk 00:19:45]}
{[%emt 00:00:01]} 16. Qd3 {[%clk 00:20:35]} {[%emt 00:00:12]} Qd5 {[%clk
00:19:09]} {[%emt 00:00:41]} 17. Rhe1 {[%clk 00:20:21]} {[%emt 00:00:19]} Rfd8
{[%clk 00:18:17]} {[%emt 00:00:57]} 18. c4 {[%clk 00:20:09]} {[%emt 00:00:17]}
Qd7 {[%clk 00:17:57]} {[%emt 00:00:23]} 19. Bc3 {[%clk 00:19:42]} {[%emt
00:00:34]} Qc7 {[%clk 00:14:25]} {[%emt 00:03:36]} 20. Qe2 {[%clk 00:19:06]}
{[%emt 00:00:42]} Bd6 {[%clk 00:11:40]} {[%emt 00:02:49]} 21. Ne5 {[%clk
00:18:49]} {[%emt 00:00:23]} Bxe5 {[%clk 00:11:00]} {[%emt 00:00:46]} 22. dxe5
{[%clk 00:18:51]} {[%emt 00:00:02]} Nh7 {[%clk 00:10:42]} {[%emt 00:00:21]} 23.
g4 {[%clk 00:18:30]} {[%emt 00:00:27]} Rxd1+ {[%clk 00:10:11]} {[%emt
00:00:37]} 24. Rxd1 {[%clk 00:18:33]} {[%emt 00:00:02]} Rd8 {[%clk 00:10:15]}
{[%emt 00:00:02]} 25. f4 {[%clk 00:18:03]} {[%emt 00:00:35]} Rd7 {[%clk
00:07:16]} {[%emt 00:03:03]} 26. Rxd7 {[%clk 00:17:49]} {[%emt 00:00:19]} Qxd7
{[%clk 00:07:20]} {[%emt 00:00:02]} 27. Kc2 {[%clk 00:17:53]} {[%emt 00:00:01]}
b5 {[%clk 00:05:09]} {[%emt 00:02:16]} 28. Qd3 {[%clk 00:17:28]} {[%emt
00:00:29]} Qe8 {[%clk 00:04:40]} {[%emt 00:00:34]} 29. Bb4 {[%clk 00:16:56]}
{[%emt 00:00:38]} Qc8 {[%clk 00:04:07]} {[%emt 00:00:35]} 30. cxb5 {[%clk
00:16:42]} {[%emt 00:00:22]} cxb5+ {[%clk 00:04:10]} {[%emt 00:00:02]} 31. Qc3
{[%clk 00:16:39]} {[%emt 00:00:07]} Qb7 {[%clk 00:03:57]} {[%emt 00:00:16]} 32.
Qd2 {[%clk 00:15:46]} {[%emt 00:01:01]} Qc7+ {[%clk 00:03:45]} {[%emt
00:00:17]} 33. Kb1 {[%clk 00:15:34]} {[%emt 00:00:16]} f6 {[%clk 00:03:10]}
{[%emt 00:00:42]} 34. Qd6 {[%clk 00:14:34]} {[%emt 00:01:04]} Qxd6 {[%clk
00:02:34]} {[%emt 00:00:41]} 35. exd6 {[%clk 00:14:24]} {[%emt 00:00:16]} Nf8
{[%clk 00:02:36]} {[%emt 00:00:03]} 36. Kc2 {[%clk 00:14:24]} {[%emt 00:00:05]}
Kf7 {[%clk 00:01:54]} {[%emt 00:00:45]} 37. Kd3 {[%clk 00:14:07]} {[%emt
00:00:23]} Nd7 {[%clk 00:01:32]} {[%emt 00:00:25]} 38. Ke4 {[%clk 00:13:35]}
{[%emt 00:00:36]} g6 {[%clk 00:01:11]} {[%emt 00:00:28]} 39. hxg6+ {[%clk
00:10:17]} {[%emt 00:03:25]} Kxg6 {[%clk 00:01:14]} {[%emt 00:00:01]} 40. f5+
{[%clk 00:10:20]} {[%emt 00:00:02]} exf5+ {[%clk 00:00:40]} {[%emt 00:00:39]}
41. gxf5+ {[%clk 00:10:22]} {[%emt 00:00:03]} Kf7 {[%clk 00:00:42]} {[%emt
00:00:02]} 42. Kf4 {[%clk 00:09:57]} {[%emt 00:00:26]} Nb6 {[%clk 00:00:37]}
{[%emt 00:00:15]} 43. Kg4 {[%clk 00:09:30]} {[%emt 00:00:31]} Nd7 {[%clk
00:00:29]} {[%emt 00:00:13]} 44. Kh5 {[%clk 00:09:23]} {[%emt 00:00:12]} Kg7
{[%clk 00:00:31]} {[%emt 00:00:03]} 45. Bd2 {[%clk 00:09:26]} {[%emt 00:00:02]}
Kf7 {[%clk 00:00:21]} {[%emt 00:00:15]} 46. Bxh6 {[%clk 00:08:56]} {[%emt
00:00:36]} Nb6 {[%clk 00:00:13]} {[%emt 00:00:13]} 47. Be3 {[%clk 00:08:46]}
{[%emt 00:00:13]} Nc4 {[%clk 00:00:17]} {[%emt 00:00:04]} 48. Bc5 {[%clk
00:08:33]} {[%emt 00:00:18]} Ne5 {[%clk 00:00:10]} {[%emt 00:00:12]} 49. Bxa7
{[%clk 00:08:11]} {[%emt 00:00:28]} Ke8 {[%clk 00:00:12]} {[%emt 00:00:02]} 50.
Bd4 {[%clk 00:08:03]} {[%emt 00:00:12]} Nd7 {[%clk 00:00:13]} {[%emt 00:00:05]}
51. Kg6 {[%clk 00:08:01]} {[%emt 00:00:06]} Kd8 {[%clk 00:00:17]} {[%emt
00:00:02]} 52. Bxf6+ {[%clk 00:08:01]} {[%emt 00:00:05]} Kc8 {[%clk 00:00:21]}
{[%emt 00:00:01]} 53. Bd4 {[%clk 00:07:54]} {[%emt 00:00:11]} Kb7 {[%clk
00:00:25]} {[%emt 00:00:02]} 54. f6 {[%clk 00:07:57]} {[%emt 00:00:02]} Kc6
{[%clk 00:00:29]} 55. f7 {[%clk 00:07:46]} {[%emt 00:00:15]} Kxd6 {[%clk
00:00:31]} {[%emt 00:00:03]} 56. Kg7 {[%clk 00:07:48]} {[%emt 00:00:03]} Kd5
{[%clk 00:00:34]} {[%emt 00:00:02]} 57. Bc3 {[%clk 00:07:44]} {[%emt 00:00:10]}
Kc4 {[%clk 00:00:34]} {[%emt 00:00:05]} 58. a3 {[%clk 00:07:30]} {[%emt
00:00:19]} Kb3 {[%clk 00:00:28]} {[%emt 00:00:10]} 59. f8=Q {[%clk 00:07:20]}
{[%emt 00:00:15]} Nxf8 {[%clk 00:00:32]} {[%emt 00:00:01]} 60. Kxf8 {[%clk
00:07:24]} {[%emt 00:00:02]} b4 {[%clk 00:00:35]} {[%emt 00:00:02]} 61. axb4
{[%clk 00:07:25]} {[%emt 00:00:04]} Ka4 {[%clk 00:00:38]} {[%emt 00:00:02]} 62.
Ke7 {[%clk 00:07:28]} {[%emt 00:00:02]} Kb5 {[%clk 00:00:42]} {[%emt 00:00:02]}
63. Kd6 {[%clk 00:07:29]} {[%emt 00:00:03]} Kb6 {[%clk 00:00:45]} {[%emt
00:00:02]} 64. b3 {[%clk 00:07:20]} {[%emt 00:00:14]} Kb5 {[%clk 00:00:50]} 65.
Kd5 {[%clk 00:07:21]} {[%emt 00:00:04]} Kb6 {[%clk 00:00:53]} {[%emt 00:00:01]}
66. Kc4 {[%clk 00:07:26]} Kc6 {[%clk 00:00:57]} 67. b5+ {[%clk 00:07:29]}
{[%emt 00:00:02]} Kb6 {[%clk 00:01:01]} {[%emt 00:00:01]} 68. Bd4+ {[%clk
00:07:28]} {[%emt 00:00:05]} Kc7 {[%clk 00:01:05]} {[%emt 00:00:02]} 69. Kc5
{[%clk 00:07:33]} {[%emt 00:00:01]} Kb7 {[%clk 00:01:09]} 70. b6 {[%clk
00:07:36]} {[%emt 00:00:02]} Kc8 {[%clk 00:01:13]} {[%emt 00:00:01]} 71. Kc6
{[%clk 00:07:34]} {[%emt 00:00:07]} Kb8 {[%clk 00:01:16]} {[%emt 00:00:02]} 72.
Bb2 {[%clk 00:07:33]} {[%emt 00:00:05]} Kc8 {[%clk 00:01:19]} {[%emt 00:00:03]}
73. Ba1 {[%clk 00:07:37]} {[%emt 00:00:02]} Kb8 {[%clk 00:01:22]} {[%emt
00:00:02]} 74. b7 {[%clk 00:07:40]} {[%emt 00:00:02]} Ka7 {[%clk 00:01:26]}
{[%emt 00:00:01]} 75. Kc7 {[%clk 00:07:44]} {[%emt 00:00:01]} Ka6 {[%clk
00:01:30]} 76. b8=Q {[%clk 00:07:47]} {[%emt 00:00:03]} Ka5 {[%clk 00:01:34]}
77. Qb6# {[%emt 00:00:10]} 1-0



[ePGN "0.1;DGT LiveChess/2.2.6"]

[Event "MČR mládeže v rapid šachu 2024 H10"]
[Site "Harrachov, Czech Republic"]
[Date "????.??.??"]
[Round "6.5"]
[White "Burel Jan"]
[Black "Macharacek Jakub"]
[Result "1/2-1/2"]
[TimeControl "20+5"]
[WhiteFideId "23754907"]
[BlackFideId "23766697"]
[WhiteElo "1566"]
[BlackElo "1584"]

1. e4 {[%clk 00:20:04]} {[%emt 00:00:06]} d5 {[%clk 00:20:09]} {[%emt
00:00:02]} 2. exd5 {[%clk 00:20:06]} {[%emt 00:00:02]} Nf6 {[%clk 00:20:13]} 3.
Nf3 {[%clk 00:20:06]} {[%emt 00:00:06]} Nxd5 {[%clk 00:20:13]} {[%emt
00:00:05]} 4. d4 {[%clk 00:19:59]} {[%emt 00:00:12]} Bf5 {[%clk 00:20:08]}
{[%emt 00:00:10]} 5. c4 {[%clk 00:19:12]} {[%emt 00:00:52]} Nf6 {[%clk
00:19:43]} {[%emt 00:00:30]} 6. Nc3 {[%clk 00:18:47]} {[%emt 00:00:29]} e6
{[%clk 00:19:40]} {[%emt 00:00:09]} 7. Be2 {[%clk 00:17:33]} {[%emt 00:01:19]}
Nbd7 {[%clk 00:19:16]} {[%emt 00:00:27]} 8. b3 {[%clk 00:17:14]} {[%emt
00:00:26]} b6 {[%clk 00:18:54]} {[%emt 00:00:27]} 9. O-O {[%clk 00:16:56]}
{[%emt 00:00:23]} c5 {[%clk 00:18:45]} {[%emt 00:00:14]} 10. d5 {[%clk
00:16:34]} {[%emt 00:00:27]} Be7 {[%clk 00:18:00]} {[%emt 00:00:50]} 11. Bb2
{[%clk 00:15:45]} {[%emt 00:00:55]} a6 {[%clk 00:16:57]} {[%emt 00:01:09]} 12.
Bd3 {[%clk 00:14:58]} {[%emt 00:00:50]} Bxd3 {[%clk 00:16:24]} {[%emt
00:00:39]} 13. Qxd3 {[%clk 00:14:59]} {[%emt 00:00:03]} exd5 {[%clk 00:16:19]}
{[%emt 00:00:10]} 14. Nxd5 {[%clk 00:14:55]} {[%emt 00:00:08]} Nxd5 {[%clk
00:15:51]} {[%emt 00:00:33]} 15. Qxd5 {[%clk 00:14:54]} {[%emt 00:00:06]} O-O
{[%clk 00:15:41]} {[%emt 00:00:16]} 16. Rad1 {[%clk 00:14:35]} {[%emt
00:00:23]} Nf6 {[%clk 00:15:14]} {[%emt 00:00:32]} 17. Qxd8 {[%clk 00:14:33]}
{[%emt 00:00:08]} Rfxd8 {[%clk 00:15:06]} {[%emt 00:00:13]} 18. Ne5 {[%clk
00:14:19]} {[%emt 00:00:15]} Rxd1 {[%clk 00:14:44]} {[%emt 00:00:31]} 19. Rxd1
{[%clk 00:14:20]} {[%emt 00:00:04]} Rd8 {[%clk 00:14:40]} {[%emt 00:00:08]} 20.
Rxd8+ {[%clk 00:14:22]} {[%emt 00:00:04]} Bxd8 {[%clk 00:14:44]} {[%emt
00:00:01]} 21. f3 {[%clk 00:14:07]} {[%emt 00:00:19]} Bc7 {[%clk 00:14:31]}
{[%emt 00:00:18]} 22. Kf2 {[%clk 00:14:03]} {[%emt 00:00:09]} Kf8 {[%clk
00:14:30]} {[%emt 00:00:06]} 23. h3 {[%clk 00:13:53]} {[%emt 00:00:15]} Ke7
{[%clk 00:14:26]} {[%emt 00:00:09]} 24. Ke3 {[%clk 00:13:55]} {[%emt 00:00:02]}
Ke6 {[%clk 00:14:25]} {[%emt 00:00:07]} 25. Nd3 {[%clk 00:13:52]} {[%emt
00:00:07]} g6 {[%clk 00:13:50]} {[%emt 00:00:42]} 26. f4 {[%clk 00:13:05]}
{[%emt 00:00:51]} Nd7 {[%clk 00:13:23]} {[%emt 00:00:32]} 27. g4 {[%clk
00:12:38]} {[%emt 00:00:32]} f5 {[%clk 00:13:00]} {[%emt 00:00:29]} 28. g5
{[%clk 00:12:19]} b5 {[%clk 00:12:29]} {[%emt 00:01:00]} 29. Ba3 {[%clk
00:10:43]} b4 {[%emt 00:02:17]} 30. Bb2 Bd6 31. Kf3 a5 32. Bc1 Nb6 33. Be3 Nd7
34. h4 Kf7 {[%clk 00:11:58]} 35. Bc1 {[%clk 00:09:20]} {[%emt 00:03:20]} Kg8
{[%clk 00:10:16]} {[%emt 00:00:44]} 36. Bb2 {[%clk 00:09:14]} {[%emt 00:00:11]}
h5 {[%clk 00:10:03]} {[%emt 00:00:19]} 37. gxh6 {[%clk 00:06:59]} {[%emt
00:02:20]} Bf8 {[%clk 00:09:52]} {[%emt 00:00:16]} 38. Be5 {[%clk 00:06:50]}
{[%emt 00:00:13]} Be7 {[%clk 00:08:35]} {[%emt 00:01:22]} 39. Kg3 {[%clk
00:06:43]} {[%emt 00:00:12]} Bd8 {[%emt 00:00:50]} 1/2-1/2



[ePGN "0.1;DGT LiveChess/2.2.6"]

[Event "MČR mládeže v rapid šachu 2024 H10"]
[Site "Harrachov, Czech Republic"]
[Date "????.??.??"]
[Round "6.6"]
[White "Vratny Vojtech"]
[Black "Bukovskij Dmitri"]
[Result "1/2-1/2"]
[TimeControl "20+5"]
[WhiteFideId "23753692"]
[BlackFideId "23749660"]
[WhiteElo "1591"]
[BlackElo "1700"]

1. Nf3 {[%clk 00:20:07]} {[%emt 00:00:02]} c5 {[%clk 00:20:09]} 2. g3 {[%clk
00:20:09]} {[%emt 00:00:05]} e6 {[%clk 00:20:14]} {[%emt 00:00:01]} 3. Bg2
{[%clk 00:20:11]} {[%emt 00:00:02]} d5 {[%clk 00:20:17]} {[%emt 00:00:01]} 4.
O-O {[%clk 00:20:12]} {[%emt 00:00:04]} Nf6 {[%clk 00:20:21]} {[%emt 00:00:02]}
5. d3 {[%clk 00:20:12]} {[%emt 00:00:04]} Nc6 {[%emt 00:00:04]} 6. Nbd2 {[%clk
00:20:11]} {[%emt 00:00:05]} g6 {[%clk 00:20:20]} {[%emt 00:00:09]} 7. e4
{[%clk 00:20:11]} {[%emt 00:00:04]} Bg7 {[%clk 00:20:23]} {[%emt 00:00:02]} 8.
c3 {[%clk 00:20:11]} {[%emt 00:00:05]} O-O {[%clk 00:20:22]} {[%emt 00:00:06]}
9. Qc2 {[%clk 00:20:10]} {[%emt 00:00:06]} Re8 {[%clk 00:19:22]} {[%emt
00:01:06]} 10. Re1 {[%clk 00:19:58]} {[%emt 00:00:15]} d4 {[%clk 00:18:15]}
{[%emt 00:01:14]} 11. a4 {[%clk 00:19:20]} {[%emt 00:00:42]} e5 {[%clk
00:17:27]} {[%emt 00:00:52]} 12. Nc4 {[%clk 00:18:47]} {[%emt 00:00:38]} b6
{[%clk 00:16:52]} {[%emt 00:00:42]} 13. Bg5 {[%clk 00:18:17]} {[%emt 00:00:33]}
Ba6 {[%clk 00:16:54]} {[%emt 00:00:04]} 14. Nfd2 {[%clk 00:18:04]} {[%emt
00:00:12]} h6 {[%clk 00:15:34]} {[%emt 00:01:32]} 15. Bxf6 {[%clk 00:18:01]}
{[%emt 00:00:08]} Bxf6 {[%clk 00:15:35]} {[%emt 00:00:03]} 16. Rad1 {[%clk
00:14:57]} {[%emt 00:03:03]} Bg7 {[%clk 00:15:23]} {[%emt 00:00:23]} 17. Na3
{[%clk 00:14:11]} {[%emt 00:00:49]} dxc3 {[%clk 00:15:07]} {[%emt 00:00:23]} 18.
Qxc3 {[%clk 00:13:44]} {[%emt 00:00:29]} Qxd3 {[%clk 00:14:45]} {[%emt
00:00:29]} 19. Qxd3 {[%clk 00:13:25]} {[%emt 00:00:25]} Bxd3 {[%clk 00:14:47]}
{[%emt 00:00:03]} 20. Nf3 {[%clk 00:13:10]} {[%emt 00:00:19]} Rad8 {[%clk
00:14:07]} {[%emt 00:00:45]} 21. Re3 {[%clk 00:12:55]} {[%emt 00:00:18]} Ba6
{[%clk 00:14:10]} {[%emt 00:00:05]} 22. Rxd8 {[%clk 00:12:42]} {[%emt
00:00:18]} Rxd8 {[%clk 00:14:12]} {[%emt 00:00:03]} 23. h4 {[%clk 00:12:33]}
{[%emt 00:00:13]} Nd4 {[%clk 00:13:47]} {[%emt 00:00:30]} 24. Kh2 {[%clk
00:12:12]} {[%emt 00:00:21]} Nxf3+ {[%clk 00:13:48]} {[%emt 00:00:09]} 25. Rxf3
{[%clk 00:12:13]} {[%emt 00:00:05]} Rd4 {[%clk 00:13:40]} {[%emt 00:00:13]} 26.
Nb5 {[%clk 00:11:58]} {[%emt 00:00:20]} Bxb5 {[%clk 00:13:36]} {[%emt
00:00:09]} 27. axb5 {[%clk 00:12:01]} {[%emt 00:00:02]} Rxe4 {[%clk 00:13:03]}
{[%emt 00:00:38]} 28. Rxf7 {[%clk 00:11:54]} {[%emt 00:00:11]} Rxh4+ {[%clk
00:13:07]} {[%emt 00:00:02]} 29. gxh4 {[%clk 00:11:49]} {[%emt 00:00:10]} Kxf7
{[%clk 00:13:10]} {[%emt 00:00:02]} 30. Bd5+ {[%clk 00:11:47]} {[%emt
00:00:07]} Ke7 {[%clk 00:13:09]} {[%emt 00:00:06]} 31. Kg3 {[%clk 00:11:47]}
{[%emt 00:00:04]} Kf6 {[%clk 00:13:01]} {[%emt 00:00:13]} 32. f4 {[%clk
00:11:31]} {[%emt 00:00:19]} Kf5 {[%clk 00:13:03]} {[%emt 00:00:06]} 33. Kf3
{[%clk 00:10:54]} {[%emt 00:00:41]} g5 {[%clk 00:11:47]} {[%emt 00:01:22]} 34.
hxg5 {[%clk 00:10:51]} {[%emt 00:00:08]} hxg5 {[%clk 00:11:50]} {[%emt
00:00:02]} 35. fxg5 {[%clk 00:10:48]} {[%emt 00:00:08]} Kxg5 {[%clk 00:11:48]}
{[%emt 00:00:07]} 36. Ke4 {[%clk 00:10:41]} {[%emt 00:00:11]} Kg4 {[%clk
00:11:29]} {[%emt 00:00:24]} 37. b3 {[%clk 00:10:38]} {[%emt 00:00:08]} Kg3
{[%clk 00:11:06]} {[%emt 00:00:28]} 38. Bc4 {[%clk 00:10:37]} {[%emt 00:00:06]}
Kf2 {[%clk 00:11:07]} {[%emt 00:00:04]} 39. Bd5 {[%clk 00:10:38]} {[%emt
00:00:05]} Ke2 {[%clk 00:11:03]} {[%emt 00:00:09]} 40. Bc4+ {[%clk 00:10:39]}
{[%emt 00:00:03]} Kd2 {[%clk 00:11:06]} {[%emt 00:00:02]} 41. Bd5 {[%clk
00:10:41]} {[%emt 00:00:03]} Kc3 {[%clk 00:11:08]} {[%emt 00:00:03]} 42. Bc4
{[%clk 00:10:43]} {[%emt 00:00:02]} Kb4 {[%clk 00:10:38]} {[%emt 00:00:36]} 43.
Kd3 {[%clk 00:10:44]} {[%emt 00:00:03]} Ka5 {[%clk 00:10:16]} {[%emt 00:00:28]}
44. Ke4 {[%clk 00:10:46]} {[%emt 00:00:02]} Bf6 {[%emt 00:00:39]} 45. Kd3
{[%clk 00:10:46]} {[%emt 00:00:03]} Bd8 {[%clk 00:09:43]} {[%emt 00:00:06]} 46.
Ke4 {[%clk 00:10:48]} {[%emt 00:00:03]} Bc7 {[%clk 00:09:47]} {[%emt 00:00:01]}
47. Kd3 {[%clk 00:10:51]} {[%emt 00:00:02]} Bb8 {[%clk 00:09:49]} {[%emt
00:00:02]} 48. Ke4 {[%clk 00:10:55]} {[%emt 00:00:02]} a6 {[%clk 00:08:56]}
{[%emt 00:00:59]} 49. bxa6 {[%clk 00:10:55]} {[%emt 00:00:05]} b5 {[%clk
00:09:00]} 50. Bd3 {[%clk 00:10:39]} {[%emt 00:00:19]} Kxa6 {[%clk 00:08:54]}
{[%emt 00:00:13]} 51. Kd5 {[%clk 00:10:33]} {[%emt 00:00:09]} Kb6 {[%clk
00:08:52]} {[%emt 00:00:08]} 52. Be4 {[%clk 00:10:26]} {[%emt 00:00:11]} Bc7
{[%clk 00:07:57]} {[%emt 00:01:02]} 53. Bd3 {[%clk 00:10:20]} {[%emt 00:00:10]}
Bd8 {[%clk 00:07:10]} {[%emt 00:00:52]} 54. Be4 {[%clk 00:10:19]} {[%emt
00:00:05]} Bg5 {[%clk 00:07:04]} {[%emt 00:00:11]} 55. Kxe5 {[%clk 00:10:04]}
{[%emt 00:00:21]} Be3 {[%clk 00:07:08]} {[%emt 00:00:01]} 56. Kd5 {[%clk
00:09:59]} {[%emt 00:00:08]} Bd4 {[%clk 00:07:11]} {[%emt 00:00:03]} 57. Bd3
{[%clk 00:10:00]} {[%emt 00:00:04]} Bc3 {[%clk 00:05:38]} {[%emt 00:01:38]} 58.
Ke4 {[%clk 00:09:54]} {[%emt 00:00:07]} Kc6 {[%clk 00:04:30]} {[%emt 00:01:18]}
59. Kf3 {[%clk 00:09:48]} {[%emt 00:00:07]} Bd4 {[%clk 00:03:21]} {[%emt
00:01:18]} 60. Ke4 {[%clk 00:09:45]} {[%emt 00:00:08]} Bc3 {[%clk 00:03:01]}
{[%emt 00:00:25]} 61. Kf3 {[%clk 00:09:12]} {[%emt 00:00:38]} c4 {[%clk
00:02:40]} {[%emt 00:00:27]} 62. Bxc4 {[%clk 00:08:59]} {[%emt 00:00:18]}
1/2-1/2



[ePGN "0.1;DGT LiveChess/2.2.6"]

[Event "MČR mládeže v rapid šachu 2024 H10"]
[Site "Harrachov, Czech Republic"]
[Date "????.??.??"]
[Round "6.8"]
[White "Skoloud Josef"]
[Black "Bartak Tobias"]
[Result "1-0"]
[TimeControl "20+5"]
[WhiteFideId "23744111"]
[BlackFideId "23753544"]
[WhiteElo "1683"]
[BlackElo "1563"]

1. e4 {[%clk 00:20:08]} e5 {[%clk 00:20:09]} {[%emt 00:00:02]} 2. f4 {[%clk
00:20:11]} {[%emt 00:00:01]} exf4 {[%clk 00:20:09]} {[%emt 00:00:05]} 3. Nf3
{[%clk 00:20:15]} {[%emt 00:00:01]} Nf6 {[%clk 00:20:13]} {[%emt 00:00:01]} 4.
e5 {[%clk 00:20:09]} {[%emt 00:00:11]} Ng8 {[%clk 00:20:15]} {[%emt 00:00:03]}
5. d4 {[%clk 00:20:08]} {[%emt 00:00:06]} d6 {[%clk 00:20:15]} {[%emt
00:00:04]} 6. Bxf4 {[%clk 00:19:17]} {[%emt 00:00:56]} dxe5 {[%clk 00:19:54]}
{[%emt 00:00:31]} 7. Nxe5 {[%clk 00:19:22]} {[%emt 00:00:05]} Nd7 {[%clk
00:19:37]} {[%emt 00:00:22]} 8. Bc4 {[%clk 00:13:55]} {[%emt 00:05:32]} Nxe5
{[%clk 00:18:19]} {[%emt 00:01:22]} 9. Bxe5 {[%clk 00:13:58]} {[%emt 00:00:03]}
Qh4+ {[%clk 00:18:21]} {[%emt 00:00:02]} 10. Kf1 {[%clk 00:13:13]} {[%emt
00:00:50]} Bg4 {[%clk 00:16:28]} {[%emt 00:01:58]} 11. Qd2 {[%clk 00:12:23]}
{[%emt 00:00:56]} Ne7 {[%clk 00:11:54]} {[%emt 00:04:38]} 12. Bxc7 {[%clk
00:11:18]} {[%emt 00:01:11]} Qf6+ {[%clk 00:11:41]} {[%emt 00:00:19]} 13. Qf4
{[%clk 00:11:20]} {[%emt 00:00:03]} Qxf4+ {[%clk 00:11:09]} {[%emt 00:00:37]}
14. Bxf4 {[%clk 00:11:22]} {[%emt 00:00:02]} Rc8 {[%clk 00:11:12]} {[%emt
00:00:02]} 15. Bb3 {[%clk 00:10:56]} {[%emt 00:00:31]} Nf5 {[%clk 00:10:10]}
{[%emt 00:01:08]} 16. h3 {[%clk 00:10:14]} {[%emt 00:00:47]} Nxd4 {[%clk
00:08:54]} {[%emt 00:01:21]} 17. hxg4 {[%clk 00:09:51]} {[%emt 00:00:28]} Nxb3
{[%clk 00:08:55]} {[%emt 00:00:04]} 18. cxb3 {[%clk 00:09:48]} {[%emt
00:00:08]} Bd6 {[%clk 00:08:38]} {[%emt 00:00:21]} 19. Be3 {[%clk 00:09:14]}
{[%emt 00:00:39]} Be5 {[%clk 00:08:33]} {[%emt 00:00:09]} 20. Nc3 {[%clk
00:08:53]} {[%emt 00:00:26]} Bxc3 {[%clk 00:08:35]} {[%emt 00:00:04]} 21. bxc3
{[%clk 00:08:55]} {[%emt 00:00:02]} Rxc3 {[%clk 00:08:38]} {[%emt 00:00:01]}
1-0



[ePGN "0.1;DGT LiveChess/2.2.6"]